[Event "Titled Tuesday Blitz April 11 Early 2023"]
[White "Mortazavi, Ali"]
[Black "Klepikov, Nikita"]
[WhiteFideId "401323"]
[BlackFideId "24145220"]
[WhiteElo "2339"]
[BlackElo "2025"]
[Result "1-0"]
[Round "04"]
[TimeControl "180+2"]
[Date "2023.04.11"]
[WhiteClock "0:00:14"]
[BlackClock "0:00:06"]

1. Nf3 {[%clk 0:02:57]}  Nf6 {[%clk 0:03:00]} 2. g3 {[%clk 0:02:57]}  g6 {[%clk 0:02:55]} 3. Bg2 {[%clk 0:02:58]}  Bg7 {[%clk 0:02:56]} 4. O-O {[%clk 0:02:59]}  d6 {[%clk 0:02:56]} 5. d3 {[%clk 0:02:59]}  O-O {[%clk 0:02:57]} 6. e4 {[%clk 0:03:00]}  e5 {[%clk 0:02:57]} 7. Nc3 {[%clk 0:03:00]}  h6 {[%clk 0:02:58]} 8. a4 {[%clk 0:03:00]}  Nh7 {[%clk 0:02:59]} 9. d4 {[%clk 0:02:51]}  Nc6 {[%clk 0:02:57]} 10. Be3 {[%clk 0:02:36]}  a6 {[%clk 0:02:55]} 11. h3 {[%clk 0:02:32]}  f5 {[%clk 0:02:48]} 12. dxe5 {[%clk 0:02:32]}  dxe5 {[%clk 0:02:42]} 13. Bc5 {[%clk 0:02:22]}  Re8 {[%clk 0:02:25]} 14. Nh4 {[%clk 0:02:10]}  Qf6 {[%clk 0:02:19]} 15. exf5 {[%clk 0:02:03]}  gxf5 {[%clk 0:02:18]} 16. Qh5 {[%clk 0:01:32]}  Be6 {[%clk 0:02:15]} 17. Nd5 {[%clk 0:01:26]}  Qd8 {[%clk 0:01:32]} 18. Rad1 {[%clk 0:00:59]}  Nf6 {[%clk 0:01:32]} 19. Qg6 {[%clk 0:00:36]}  Nxd5 {[%clk 0:01:03]} 20. Bxd5 {[%clk 0:00:31]}  Bxd5 {[%clk 0:01:02]} 21. Nxf5 {[%clk 0:00:31]}  Qf6 {[%clk 0:00:24]} 22. Nxh6+ {[%clk 0:00:30]}  Kh8 {[%clk 0:00:19]} 23. Qxf6 {[%clk 0:00:28]}  Bxf6 {[%clk 0:00:19]} 24. Rxd5 {[%clk 0:00:29]}  Kg7 {[%clk 0:00:16]} 25. Nf5+ {[%clk 0:00:29]}  Kg6 {[%clk 0:00:16]} 26. g4 {[%clk 0:00:29]}  Rh8 {[%clk 0:00:16]} 27. Kg2 {[%clk 0:00:29]}  Rh7 {[%clk 0:00:15]} 28. c3 {[%clk 0:00:24]}  Rah8 {[%clk 0:00:15]} 29. Rh1 {[%clk 0:00:23]}  Bg5 {[%clk 0:00:15]} 30. f3 {[%clk 0:00:22]}  Bf4 {[%clk 0:00:15]} 31. h4 {[%clk 0:00:22]}  Kf6 {[%clk 0:00:16]} 32. Re1 {[%clk 0:00:18]}  Ke6 {[%clk 0:00:15]} 33. Rd3 {[%clk 0:00:17]}  b6 {[%clk 0:00:14]} 34. Ba3 {[%clk 0:00:16]}  Na5 {[%clk 0:00:09]} 35. Re4 {[%clk 0:00:15]}  Rxh4 {[%clk 0:00:08]} 36. Nxh4 {[%clk 0:00:15]}  Rxh4 {[%clk 0:00:08]} 37. Rxf4 {[%clk 0:00:14]}  exf4 {[%clk 0:00:08]} 38. Rd4 {[%clk 0:00:15]}  Ke5 {[%clk 0:00:05]} 39. Re4+ {[%clk 0:00:15]}  Kd5 {[%clk 0:00:04]} 40. Rd4+ {[%clk 0:00:14]}  Ke5 {[%clk 0:00:03]} 41. Re4+ {[%clk 0:00:14]}  Kd5 {[%clk 0:00:04]} 42. Rxf4 {[%clk 0:00:15]}  Rh7 {[%clk 0:00:04]} 43. Bb4 {[%clk 0:00:11]}  Nc4 {[%clk 0:00:05]} 44. Rd4+ {[%clk 0:00:12]}  Ke5 {[%clk 0:00:03]} 45. Rxc4 {[%clk 0:00:12]}  c5 {[%clk 0:00:04]} 46. Re4+ {[%clk 0:00:12]}  Kd5 {[%clk 0:00:04]} 47. Ba3 {[%clk 0:00:12]}  Rd7 {[%clk 0:00:04]} 48. g5 {[%clk 0:00:12]}  Kc6 {[%clk 0:00:04]} 49. Rg4 {[%clk 0:00:12]}  Rd2+ {[%clk 0:00:04]} 50. Kg3 {[%clk 0:00:13]}  Kd6 {[%clk 0:00:05]} 51. g6 {[%clk 0:00:13]}  Ke6 {[%clk 0:00:06]} 52. g7 {[%clk 0:00:14]} 1-0


[Site "https://www.chess.com"]

[Event "Titled Tuesday Blitz April 11 Early 2023"]
[White "Novikov, Evgenij"]
[Black "Hoffmann, Asa"]
[WhiteFideId "4125380"]
[BlackFideId "2001470"]
[WhiteElo "2242"]
[BlackElo "2117"]
[Result "1-0"]
[Round "04"]
[TimeControl "180+2"]
[Date "2023.04.11"]
[WhiteClock "0:00:17"]
[BlackClock "0:00:33"]

1. e4 {[%clk 0:03:00]}  d6 {[%clk 0:02:56]} 2. Nc3 {[%clk 0:02:58]}  c6 {[%clk 0:02:56]} 3. f4 {[%clk 0:02:57]}  Nf6 {[%clk 0:02:54]} 4. Nf3 {[%clk 0:02:54]}  Bg4 {[%clk 0:02:53]} 5. h3 {[%clk 0:02:54]}  Bxf3 {[%clk 0:02:53]} 6. Qxf3 {[%clk 0:02:55]}  e6 {[%clk 0:02:53]} 7. d4 {[%clk 0:02:42]}  Qb6 {[%clk 0:02:47]} 8. Bd2 {[%clk 0:02:36]}  Qxd4 {[%clk 0:02:38]} 9. O-O-O {[%clk 0:02:36]}  Qb6 {[%clk 0:02:35]} 10. g4 {[%clk 0:02:32]}  Be7 {[%clk 0:02:33]} 11. g5 {[%clk 0:02:31]}  Nfd7 {[%clk 0:02:33]} 12. h4 {[%clk 0:02:28]}  d5 {[%clk 0:02:30]} 13. f5 {[%clk 0:02:21]}  d4 {[%clk 0:02:22]} 14. fxe6 {[%clk 0:02:02]}  fxe6 {[%clk 0:02:20]} 15. Bh3 {[%clk 0:02:02]}  dxc3 {[%clk 0:02:11]} 16. Bxc3 {[%clk 0:02:01]}  Rf8 {[%clk 0:01:58]} 17. Qh5+ {[%clk 0:02:00]}  Kd8 {[%clk 0:01:23]} 18. Bxe6 {[%clk 0:01:53]}  c5 {[%clk 0:01:18]} 19. Qg4 {[%clk 0:01:45]}  Qc6 {[%clk 0:01:10]} 20. Bxg7 {[%clk 0:01:14]}  Re8 {[%clk 0:01:06]} 21. Be5 {[%clk 0:01:12]}  Bf8 {[%clk 0:00:58]} 22. Bxd7 {[%clk 0:01:01]}  Nxd7 {[%clk 0:00:52]} 23. Rxd7+ {[%clk 0:01:01]}  Qxd7 {[%clk 0:00:50]} 24. Rd1 {[%clk 0:01:01]}  Qxd1+ {[%clk 0:00:45]} 25. Qxd1+ {[%clk 0:01:01]}  Kc8 {[%clk 0:00:45]} 26. Qg4+ {[%clk 0:00:56]}  Kd8 {[%clk 0:00:42]} 27. Qf5 {[%clk 0:00:49]}  Rc8 {[%clk 0:00:40]} 28. Bf6+ {[%clk 0:00:38]}  Be7 {[%clk 0:00:39]} 29. Qe5 {[%clk 0:00:27]}  Rc6 {[%clk 0:00:38]} 30. Qb8+ {[%clk 0:00:22]}  Kd7 {[%clk 0:00:37]} 31. Qxb7+ {[%clk 0:00:22]}  Rc7 {[%clk 0:00:37]} 32. Qd5+ {[%clk 0:00:21]}  Bd6 {[%clk 0:00:36]} 33. e5 {[%clk 0:00:21]}  Rc6 {[%clk 0:00:33]} 34. exd6 {[%clk 0:00:17]}  Rxd6 {[%clk 0:00:33]} 35. Qf7+ {[%clk 0:00:17]} 1-0


[Site "https://www.chess.com"]

[Event "Titled Tuesday Blitz April 11 Early 2023"]
[White "Matveeva, Olga"]
[Black "Dushyant Sharma"]
[WhiteFideId "24107018"]
[BlackFideId "25065130"]
[WhiteElo "2056"]
[BlackElo "2198"]
[Result "0-1"]
[Round "04"]
[TimeControl "180+2"]
[Date "2023.04.11"]
[WhiteClock "0:00:10"]
[BlackClock "0:01:13"]

1. d4 {[%clk 0:02:41]}  d5 {[%clk 0:02:59]} 2. c4 {[%clk 0:02:00]}  e6 {[%clk 0:02:53]} 3. Nf3 {[%clk 0:01:59]}  Nf6 {[%clk 0:02:53]} 4. g3 {[%clk 0:01:59]}  Be7 {[%clk 0:02:52]} 5. Bg2 {[%clk 0:01:59]}  O-O {[%clk 0:02:52]} 6. O-O {[%clk 0:01:59]}  dxc4 {[%clk 0:02:52]} 7. Qc2 {[%clk 0:01:58]}  c5 {[%clk 0:02:53]} 8. dxc5 {[%clk 0:01:54]}  Nc6 {[%clk 0:02:54]} 9. Qxc4 {[%clk 0:01:51]}  e5 {[%clk 0:02:54]} 10. Nc3 {[%clk 0:01:48]}  Be6 {[%clk 0:02:54]} 11. Qa4 {[%clk 0:01:37]}  Bxc5 {[%clk 0:02:53]} 12. Rd1 {[%clk 0:01:36]}  Qb6 {[%clk 0:02:50]} 13. e3 {[%clk 0:01:35]}  Rad8 {[%clk 0:02:49]} 14. Bd2 {[%clk 0:01:24]}  Bg4 {[%clk 0:02:24]} 15. h3 {[%clk 0:01:19]}  Bh5 {[%clk 0:02:07]} 16. g4 {[%clk 0:01:19]}  Bg6 {[%clk 0:02:07]} 17. Qb5 {[%clk 0:01:14]}  Qxb5 {[%clk 0:01:52]} 18. Nxb5 {[%clk 0:01:15]}  Bd3 {[%clk 0:01:53]} 19. a4 {[%clk 0:01:09]}  Be2 {[%clk 0:01:50]} 20. Rdc1 {[%clk 0:01:08]}  Bb6 {[%clk 0:01:41]} 21. Bc3 {[%clk 0:01:08]}  Rfe8 {[%clk 0:01:38]} 22. Re1 {[%clk 0:00:56]}  Bd3 {[%clk 0:01:38]} 23. Nd2 {[%clk 0:00:45]}  Nd5 {[%clk 0:01:25]} 24. Bxd5 {[%clk 0:00:29]}  Rxd5 {[%clk 0:01:26]} 25. e4 {[%clk 0:00:28]}  Rd7 {[%clk 0:01:22]} 26. b3 {[%clk 0:00:23]}  Red8 {[%clk 0:01:19]} 27. Nc4 {[%clk 0:00:21]}  Bxc4 {[%clk 0:01:18]} 28. bxc4 {[%clk 0:00:22]}  a6 {[%clk 0:01:16]} 29. a5 {[%clk 0:00:20]}  Bc5 {[%clk 0:01:13]} 30. Na3 {[%clk 0:00:18]}  Rd3 {[%clk 0:01:14]} 31. Bb2 {[%clk 0:00:17]}  Rxh3 {[%clk 0:01:14]} 32. Kg2 {[%clk 0:00:17]}  Rb3 {[%clk 0:01:13]} 33. Rab1 {[%clk 0:00:14]}  Bxa3 {[%clk 0:01:12]} 34. Bxa3 {[%clk 0:00:11]}  Rxa3 {[%clk 0:01:13]} 35. Rxb7 {[%clk 0:00:11]}  Nxa5 {[%clk 0:01:13]} 36. Ra7 {[%clk 0:00:10]}  Nxc4 {[%clk 0:01:13]} 0-1


[Site "https://www.chess.com"]

[Event "Titled Tuesday Blitz April 11 Early 2023"]
[White "Van Foreest, Machteld"]
[Black "Turzo, Attila"]
[WhiteFideId "1051563"]
[BlackFideId "704954"]
[WhiteElo "2018"]
[BlackElo "2502"]
[Result "1-0"]
[Round "04"]
[TimeControl "180+2"]
[Date "2023.04.11"]
[WhiteClock "0:00:08"]
[BlackClock "0:00:03"]

1. e4 {[%clk 0:03:00]}  c5 {[%clk 0:02:59]} 2. Nf3 {[%clk 0:03:00]}  Nc6 {[%clk 0:02:59]} 3. d4 {[%clk 0:03:00]}  cxd4 {[%clk 0:02:59]} 4. Nxd4 {[%clk 0:03:00]}  g6 {[%clk 0:03:00]} 5. c4 {[%clk 0:03:00]}  Bg7 {[%clk 0:03:00]} 6. Be3 {[%clk 0:03:00]}  Nf6 {[%clk 0:03:00]} 7. Nc3 {[%clk 0:03:00]}  d6 {[%clk 0:03:00]} 8. Be2 {[%clk 0:02:57]}  O-O {[%clk 0:03:00]} 9. O-O {[%clk 0:02:57]}  Bd7 {[%clk 0:03:00]} 10. Rc1 {[%clk 0:02:56]}  Nxd4 {[%clk 0:02:44]} 11. Bxd4 {[%clk 0:02:55]}  Bc6 {[%clk 0:02:44]} 12. f3 {[%clk 0:02:53]}  a5 {[%clk 0:02:44]} 13. Qd2 {[%clk 0:02:45]}  Nd7 {[%clk 0:02:44]} 14. Rfd1 {[%clk 0:02:44]}  Bxd4+ {[%clk 0:02:41]} 15. Qxd4 {[%clk 0:02:44]}  Qb6 {[%clk 0:02:41]} 16. Qxb6 {[%clk 0:02:17]}  Nxb6 {[%clk 0:02:42]} 17. Kf2 {[%clk 0:02:03]}  f5 {[%clk 0:02:31]} 18. Ke3 {[%clk 0:01:38]}  fxe4 {[%clk 0:02:29]} 19. fxe4 {[%clk 0:01:39]}  Bd7 {[%clk 0:02:13]} 20. Nd5 {[%clk 0:01:31]}  Nxd5+ {[%clk 0:02:10]} 21. cxd5 {[%clk 0:01:26]}  Rac8 {[%clk 0:02:03]} 22. Bf3 {[%clk 0:01:25]}  Kg7 {[%clk 0:02:00]} 23. Kd4 {[%clk 0:01:24]}  Kf6 {[%clk 0:01:58]} 24. Rf1 {[%clk 0:01:21]}  Kg5 {[%clk 0:01:57]} 25. Ke3 {[%clk 0:01:04]}  b6 {[%clk 0:01:55]} 26. g3 {[%clk 0:01:04]}  Rc5 {[%clk 0:01:47]} 27. h4+ {[%clk 0:01:00]}  Kh6 {[%clk 0:01:47]} 28. g4 {[%clk 0:00:59]}  g5 {[%clk 0:01:42]} 29. hxg5+ {[%clk 0:00:50]}  Kxg5 {[%clk 0:01:42]} 30. Rxc5 {[%clk 0:00:48]}  bxc5 {[%clk 0:01:41]} 31. Rh1 {[%clk 0:00:48]}  h6 {[%clk 0:01:41]} 32. Rh5+ {[%clk 0:00:47]}  Kg6 {[%clk 0:01:36]} 33. Rh2 {[%clk 0:00:45]}  Rb8 {[%clk 0:01:24]} 34. Rd2 {[%clk 0:00:35]}  Rb4 {[%clk 0:01:21]} 35. Be2 {[%clk 0:00:34]}  Kg5 {[%clk 0:01:18]} 36. Bf3 {[%clk 0:00:28]}  Bxg4 {[%clk 0:01:14]} 37. Bxg4 {[%clk 0:00:20]}  Kxg4 {[%clk 0:01:15]} 38. Rf2 {[%clk 0:00:20]}  h5 {[%clk 0:01:12]} 39. b3 {[%clk 0:00:17]}  h4 {[%clk 0:01:12]} 40. Rf7 {[%clk 0:00:17]}  Rb7 {[%clk 0:01:08]} 41. e5 {[%clk 0:00:16]}  dxe5 {[%clk 0:01:03]} 42. d6 {[%clk 0:00:17]}  Rb8 {[%clk 0:00:47]} 43. dxe7 {[%clk 0:00:17]}  Re8 {[%clk 0:00:47]} 44. Ke4 {[%clk 0:00:17]}  h3 {[%clk 0:00:48]} 45. Rg7+ {[%clk 0:00:17]}  Kh4 {[%clk 0:00:48]} 46. Kxe5 {[%clk 0:00:15]}  h2 {[%clk 0:00:48]} 47. Rh7+ {[%clk 0:00:14]}  Kg3 {[%clk 0:00:48]} 48. Kd6 {[%clk 0:00:14]}  Kg2 {[%clk 0:00:21]} 49. Rg7+ {[%clk 0:00:12]}  Kf2 {[%clk 0:00:19]} 50. Rf7+ {[%clk 0:00:13]}  Kg2 {[%clk 0:00:16]} 51. Rg7+ {[%clk 0:00:13]}  Kf2 {[%clk 0:00:16]} 52. Rh7 {[%clk 0:00:13]}  Kg2 {[%clk 0:00:16]} 53. Kd7 {[%clk 0:00:13]}  Ra8 {[%clk 0:00:02]} 54. Rxh2+ {[%clk 0:00:08]}  Kxh2 {[%clk 0:00:02]} 55. e8=Q {[%clk 0:00:07]}  Rxe8 {[%clk 0:00:03]} 56. Kxe8 {[%clk 0:00:08]} 1-0


[Site "https://www.chess.com"]

[Event "Titled Tuesday Blitz April 11 Early 2023"]
[White "Mammadzada, Gunay"]
[Black "Fuzesabonyilaci"]
[WhiteFideId "13403729"]
[WhiteElo "2396"]
[BlackElo "2334"]
[Result "1-0"]
[Round "04"]
[TimeControl "180+2"]
[Date "2023.04.11"]
[WhiteClock "0:00:26"]
[BlackClock "0:00:21"]

1. e4 {[%clk 0:03:00]}  c6 {[%clk 0:02:52]} 2. d4 {[%clk 0:03:00]}  d5 {[%clk 0:02:53]} 3. Nc3 {[%clk 0:03:00]}  dxe4 {[%clk 0:02:52]} 4. Nxe4 {[%clk 0:03:01]}  Nf6 {[%clk 0:02:52]} 5. Nxf6+ {[%clk 0:02:52]}  exf6 {[%clk 0:02:53]} 6. c3 {[%clk 0:02:49]}  Bd6 {[%clk 0:02:53]} 7. Bd3 {[%clk 0:02:43]}  O-O {[%clk 0:02:52]} 8. Qc2 {[%clk 0:02:44]}  g6 {[%clk 0:02:52]} 9. Ne2 {[%clk 0:02:43]}  Nd7 {[%clk 0:02:44]} 10. Bh6 {[%clk 0:02:30]}  Re8 {[%clk 0:02:44]} 11. h4 {[%clk 0:02:30]}  Bf8 {[%clk 0:02:44]} 12. h5 {[%clk 0:02:02]}  Bxh6 {[%clk 0:02:21]} 13. hxg6 {[%clk 0:02:00]}  Bg7 {[%clk 0:02:17]} 14. gxf7+ {[%clk 0:01:59]}  Kxf7 {[%clk 0:02:17]} 15. Bc4+ {[%clk 0:01:49]}  Re6 {[%clk 0:01:44]} 16. Bxe6+ {[%clk 0:01:23]}  Kxe6 {[%clk 0:01:44]} 17. Qb3+ {[%clk 0:01:10]}  Kd6 {[%clk 0:01:41]} 18. Rxh7 {[%clk 0:01:08]}  Bf8 {[%clk 0:01:19]} 19. c4 {[%clk 0:00:56]}  Qe8 {[%clk 0:01:05]} 20. Qg3+ {[%clk 0:00:47]}  Ke6 {[%clk 0:01:05]} 21. Qe3+ {[%clk 0:00:43]}  Ne5 {[%clk 0:01:00]} 22. dxe5 {[%clk 0:00:41]}  Bb4+ {[%clk 0:01:00]} 23. Kf1 {[%clk 0:00:40]}  fxe5 {[%clk 0:00:53]} 24. Nf4+ {[%clk 0:00:34]}  Kf5 {[%clk 0:00:51]} 25. Nd3 {[%clk 0:00:32]}  Bd6 {[%clk 0:00:30]} 26. Qh3+ {[%clk 0:00:30]}  Ke4 {[%clk 0:00:21]} 27. Rh4+ {[%clk 0:00:26]} 1-0


[Site "https://www.chess.com"]

[Event "Titled Tuesday Blitz April 11 Early 2023"]
[White "Rodriguez Santiago, Jaime"]
[Black "Ginzburg, Yakov"]
[WhiteFideId "3100898"]
[BlackFideId "4157176"]
[WhiteElo "2025"]
[BlackElo "2305"]
[Result "0-1"]
[Round "04"]
[TimeControl "180+2"]
[Date "2023.04.11"]
[WhiteClock "0:00:28"]
[BlackClock "0:01:01"]

1. c4 {[%clk 0:03:00]}  c6 {[%clk 0:02:59]} 2. Nc3 {[%clk 0:03:01]}  d5 {[%clk 0:02:59]} 3. d4 {[%clk 0:03:02]}  Nf6 {[%clk 0:02:59]} 4. cxd5 {[%clk 0:03:02]}  cxd5 {[%clk 0:02:59]} 5. Bf4 {[%clk 0:03:03]}  Bf5 {[%clk 0:02:56]} 6. e3 {[%clk 0:02:54]}  Nc6 {[%clk 0:02:56]} 7. Qb3 {[%clk 0:02:54]}  Qd7 {[%clk 0:02:39]} 8. Bb5 {[%clk 0:02:38]}  a6 {[%clk 0:02:38]} 9. Bxc6 {[%clk 0:02:37]}  Qxc6 {[%clk 0:02:39]} 10. Nf3 {[%clk 0:02:36]}  b5 {[%clk 0:02:16]} 11. O-O {[%clk 0:02:24]}  Qc4 {[%clk 0:02:14]} 12. Ne5 {[%clk 0:02:20]}  Qxb3 {[%clk 0:02:14]} 13. axb3 {[%clk 0:02:21]}  b4 {[%clk 0:02:06]} 14. Nb5 {[%clk 0:02:19]}  Rc8 {[%clk 0:01:53]} 15. Rxa6 {[%clk 0:02:15]}  Ne4 {[%clk 0:01:49]} 16. Rfa1 {[%clk 0:01:41]}  f6 {[%clk 0:01:45]} 17. Nd3 {[%clk 0:01:30]}  g5 {[%clk 0:01:43]} 18. Bc7 {[%clk 0:01:06]}  Nc3 {[%clk 0:01:30]} 19. bxc3 {[%clk 0:00:47]}  Bxd3 {[%clk 0:01:29]} 20. Ra8 {[%clk 0:00:48]}  Rxa8 {[%clk 0:01:20]} 21. Rxa8+ {[%clk 0:00:47]}  Kd7 {[%clk 0:01:11]} 22. Rd8+ {[%clk 0:00:29]}  Kc6 {[%clk 0:01:11]} 23. c4 {[%clk 0:00:29]}  dxc4 {[%clk 0:01:09]} 24. bxc4 {[%clk 0:00:29]}  Bxc4 {[%clk 0:01:09]} 25. d5+ {[%clk 0:00:29]}  Kxb5 {[%clk 0:01:07]} 26. Rb8+ {[%clk 0:00:29]}  Kc5 {[%clk 0:01:07]} 27. d6 {[%clk 0:00:29]}  exd6 {[%clk 0:01:05]} 28. Bd8 {[%clk 0:00:28]}  Bg7 {[%clk 0:01:01]} 0-1


[Site "https://www.chess.com"]

[Event "Titled Tuesday Blitz April 11 Early 2023"]
[White "Ward, Ieuan C"]
[Black "Shapiro, Viktor"]
[WhiteFideId "406627"]
[BlackFideId "4175700"]
[WhiteElo "2325"]
[BlackElo "2152"]
[Result "0-1"]
[Round "04"]
[TimeControl "180+2"]
[Date "2023.04.11"]
[WhiteClock "0:00:13"]
[BlackClock "0:00:10"]

1. d4 {[%clk 0:02:59]}  Nf6 {[%clk 0:02:59]} 2. c4 {[%clk 0:02:59]}  c5 {[%clk 0:02:59]} 3. d5 {[%clk 0:03:00]}  e6 {[%clk 0:02:59]} 4. Nc3 {[%clk 0:03:00]}  exd5 {[%clk 0:03:00]} 5. cxd5 {[%clk 0:03:01]}  d6 {[%clk 0:03:00]} 6. e4 {[%clk 0:03:01]}  g6 {[%clk 0:03:00]} 7. Nf3 {[%clk 0:03:01]}  Bg7 {[%clk 0:03:01]} 8. h3 {[%clk 0:03:02]}  O-O {[%clk 0:03:00]} 9. Bd3 {[%clk 0:03:02]}  Re8 {[%clk 0:03:00]} 10. O-O {[%clk 0:03:01]}  a6 {[%clk 0:02:58]} 11. a4 {[%clk 0:03:01]}  Nbd7 {[%clk 0:02:58]} 12. Re1 {[%clk 0:03:00]}  Rb8 {[%clk 0:02:56]} 13. Bf4 {[%clk 0:02:55]}  Qc7 {[%clk 0:02:48]} 14. Qc2 {[%clk 0:02:45]}  Nh5 {[%clk 0:02:47]} 15. Bh2 {[%clk 0:02:44]}  c4 {[%clk 0:02:44]} 16. Bf1 {[%clk 0:02:42]}  b5 {[%clk 0:02:43]} 17. axb5 {[%clk 0:02:41]}  axb5 {[%clk 0:02:44]} 18. Ne2 {[%clk 0:02:24]}  Nc5 {[%clk 0:02:28]} 19. Ned4 {[%clk 0:02:14]}  Bd7 {[%clk 0:02:20]} 20. g4 {[%clk 0:01:57]}  Nf6 {[%clk 0:02:19]} 21. e5 {[%clk 0:01:57]}  Nxd5 {[%clk 0:02:16]} 22. exd6 {[%clk 0:01:55]}  Qb6 {[%clk 0:02:14]} 23. Rad1 {[%clk 0:01:28]}  Nb4 {[%clk 0:02:12]} 24. Qb1 {[%clk 0:01:19]}  Nbd3 {[%clk 0:02:11]} 25. Rxe8+ {[%clk 0:01:15]}  Rxe8 {[%clk 0:02:11]} 26. b3 {[%clk 0:01:07]}  Nxf2 {[%clk 0:01:57]} 27. Kxf2 {[%clk 0:01:01]}  Ne4+ {[%clk 0:01:44]} 28. Kg2 {[%clk 0:00:51]}  Nc3 {[%clk 0:01:43]} 29. Qc2 {[%clk 0:00:46]}  Nxd1 {[%clk 0:01:40]} 30. Qxd1 {[%clk 0:00:47]}  c3 {[%clk 0:01:31]} 31. b4 {[%clk 0:00:29]}  Re4 {[%clk 0:01:24]} 32. Nc2 {[%clk 0:00:27]}  Qb7 {[%clk 0:01:00]} 33. Bd3 {[%clk 0:00:22]}  Re8 {[%clk 0:00:56]} 34. Kf1 {[%clk 0:00:19]}  Bc6 {[%clk 0:00:55]} 35. Nfe1 {[%clk 0:00:17]}  Be5 {[%clk 0:00:46]} 36. Bxe5 {[%clk 0:00:16]}  Rxe5 {[%clk 0:00:46]} 37. Nd4 {[%clk 0:00:16]}  Bd7 {[%clk 0:00:44]} 38. Ndf3 {[%clk 0:00:16]}  Re6 {[%clk 0:00:43]} 39. Qc2 {[%clk 0:00:16]}  Rxd6 {[%clk 0:00:25]} 40. Qxc3 {[%clk 0:00:16]}  h6 {[%clk 0:00:17]} 41. Qd2 {[%clk 0:00:16]}  Be6 {[%clk 0:00:15]} 42. Qxh6 {[%clk 0:00:16]}  Rxd3 {[%clk 0:00:14]} 43. Nxd3 {[%clk 0:00:15]}  Qxf3+ {[%clk 0:00:14]} 44. Nf2 {[%clk 0:00:16]}  Bc4+ {[%clk 0:00:13]} 45. Kg1 {[%clk 0:00:16]}  Qg3+ {[%clk 0:00:10]} 46. Kh1 {[%clk 0:00:14]}  Bd5+ {[%clk 0:00:10]} 47. Ne4 {[%clk 0:00:13]}  Bxe4# {[%clk 0:00:10]} 0-1


[Site "https://www.chess.com"]

[Event "Titled Tuesday Blitz April 11 Early 2023"]
[White "Nguyen, Hong Anh"]
[Black "Havas, Ladislav"]
[WhiteFideId "12406732"]
[BlackFideId "14501090"]
[WhiteElo "2054"]
[BlackElo "2202"]
[Result "1-0"]
[Round "04"]
[TimeControl "180+2"]
[Date "2023.04.11"]
[WhiteClock "0:00:23"]
[BlackClock "0:00:19"]

1. d4 {[%clk 0:02:57]}  Nf6 {[%clk 0:02:59]} 2. c4 {[%clk 0:02:56]}  e5 {[%clk 0:02:59]} 3. dxe5 {[%clk 0:02:56]}  Ne4 {[%clk 0:02:59]} 4. Nf3 {[%clk 0:02:55]}  d6 {[%clk 0:02:59]} 5. exd6 {[%clk 0:02:54]}  Bxd6 {[%clk 0:02:59]} 6. e3 {[%clk 0:02:54]}  Nc6 {[%clk 0:02:58]} 7. Be2 {[%clk 0:02:51]}  Bf5 {[%clk 0:02:58]} 8. O-O {[%clk 0:02:50]}  Qf6 {[%clk 0:02:59]} 9. Nbd2 {[%clk 0:02:37]}  O-O-O {[%clk 0:02:58]} 10. Qa4 {[%clk 0:02:32]}  Nc5 {[%clk 0:02:58]} 11. Qa3 {[%clk 0:02:17]}  Nd3 {[%clk 0:02:40]} 12. Qa4 {[%clk 0:02:12]}  Nxb2 {[%clk 0:02:25]} 13. Qb3 {[%clk 0:02:00]}  Nd3 {[%clk 0:02:23]} 14. Rb1 {[%clk 0:01:46]}  Nc5 {[%clk 0:02:23]} 15. Qa3 {[%clk 0:01:39]}  Bxb1 {[%clk 0:02:21]} 16. Nxb1 {[%clk 0:01:39]}  g5 {[%clk 0:02:08]} 17. Bb2 {[%clk 0:01:37]}  Qh6 {[%clk 0:02:02]} 18. Bxh8 {[%clk 0:01:27]}  Rxh8 {[%clk 0:02:02]} 19. Qb2 {[%clk 0:01:22]}  Rd8 {[%clk 0:01:51]} 20. h3 {[%clk 0:01:21]}  f5 {[%clk 0:01:46]} 21. Nd4 {[%clk 0:01:16]}  g4 {[%clk 0:01:41]} 22. Nxf5 {[%clk 0:01:13]}  Qg5 {[%clk 0:01:30]} 23. Nxd6+ {[%clk 0:01:12]}  Rxd6 {[%clk 0:01:30]} 24. Bxg4+ {[%clk 0:01:12]}  Kb8 {[%clk 0:01:30]} 25. Nd2 {[%clk 0:01:07]}  h5 {[%clk 0:01:26]} 26. Bf3 {[%clk 0:01:01]}  Ne5 {[%clk 0:01:19]} 27. Be2 {[%clk 0:00:51]}  b6 {[%clk 0:01:12]} 28. Nf3 {[%clk 0:00:46]}  Nxf3+ {[%clk 0:01:10]} 29. Bxf3 {[%clk 0:00:46]}  Rd8 {[%clk 0:00:59]} 30. Rd1 {[%clk 0:00:42]}  h4 {[%clk 0:00:51]} 31. Rxd8+ {[%clk 0:00:41]}  Qxd8 {[%clk 0:00:52]} 32. Qe5 {[%clk 0:00:39]}  a5 {[%clk 0:00:47]} 33. Bd5 {[%clk 0:00:37]}  Ka7 {[%clk 0:00:39]} 34. Qf5 {[%clk 0:00:34]}  a4 {[%clk 0:00:35]} 35. Qg6 {[%clk 0:00:33]}  a3 {[%clk 0:00:32]} 36. Qc6 {[%clk 0:00:31]}  Qb8 {[%clk 0:00:23]} 37. e4 {[%clk 0:00:27]}  Qd8 {[%clk 0:00:22]} 38. e5 {[%clk 0:00:25]}  Ka6 {[%clk 0:00:21]} 39. e6 {[%clk 0:00:24]}  Ka7 {[%clk 0:00:19]} 40. e7 {[%clk 0:00:23]} 1-0


[Site "https://www.chess.com"]